[Event "Titled Tuesday Blitz September 28 2021"]
[White "Reprintsev, Alexander"]
[Black "Gabrielian, Artur"]
[WhiteFideId "14100541"]
[BlackFideId "4131002"]
[WhiteElo "2126"]
[BlackElo "2489"]
[Result "1-0"]
[Round "09"]
[TimeControl "180+1"]
[Date "2021.09.28"]
[WhiteClock "0:00:03"]
[BlackClock "0:01:36"]

1. e4 {[%clk 0:00:29]}  e5 {[%clk 0:02:59]} 2. Nf3 {[%clk 0:00:28]}  Nc6 {[%clk 0:02:59]} 3. Bc4 {[%clk 0:00:28]}  Nf6 {[%clk 0:02:58]} 4. Ng5 {[%clk 0:00:27]}  d5 {[%clk 0:02:58]} 5. exd5 {[%clk 0:00:27]}  Na5 {[%clk 0:02:59]} 6. Bb5+ {[%clk 0:00:27]}  c6 {[%clk 0:02:59]} 7. dxc6 {[%clk 0:00:27]}  bxc6 {[%clk 0:02:59]} 8. Bd3 {[%clk 0:00:27]}  Be7 {[%clk 0:02:51]} 9. Nc3 {[%clk 0:00:23]}  h6 {[%clk 0:02:50]} 10. Nge4 {[%clk 0:00:22]}  Nd5 {[%clk 0:02:50]} 11. Ng3 {[%clk 0:00:22]}  Nf4 {[%clk 0:02:49]} 12. Be4 {[%clk 0:00:20]}  h5 {[%clk 0:02:47]} 13. d3 {[%clk 0:00:19]}  h4 {[%clk 0:02:47]} 14. Nge2 {[%clk 0:00:19]}  f5 {[%clk 0:02:44]} 15. Nxf4 {[%clk 0:00:18]}  exf4 {[%clk 0:02:43]} 16. Bf3 {[%clk 0:00:16]}  h3 {[%clk 0:02:40]} 17. Bh5+ {[%clk 0:00:14]}  Kf8 {[%clk 0:02:40]} 18. gxh3 {[%clk 0:00:14]}  Bh4 {[%clk 0:02:35]} 19. Kf1 {[%clk 0:00:14]}  Qd4 {[%clk 0:02:32]} 20. Qf3 {[%clk 0:00:11]}  Rxh5 {[%clk 0:02:31]} 21. Ne2 {[%clk 0:00:10]}  Qd5 {[%clk 0:02:31]} 22. Qxd5 {[%clk 0:00:08]}  cxd5 {[%clk 0:02:31]} 23. Nxf4 {[%clk 0:00:08]}  Rh7 {[%clk 0:02:30]} 24. Rg1 {[%clk 0:00:05]}  Bf6 {[%clk 0:02:30]} 25. Nxd5 {[%clk 0:00:05]}  Nc6 {[%clk 0:02:26]} 26. Nxf6 {[%clk 0:00:05]}  gxf6 {[%clk 0:02:26]} 27. c3 {[%clk 0:00:06]}  Rxh3 {[%clk 0:02:26]} 28. Bf4 {[%clk 0:00:06]}  Ne5 {[%clk 0:02:26]} 29. d4 {[%clk 0:00:05]}  Ba6+ {[%clk 0:02:25]} 30. Kg2 {[%clk 0:00:04]}  Bb7+ {[%clk 0:02:22]} 31. Kxh3 {[%clk 0:00:03]}  Nd3 {[%clk 0:02:21]} 32. Bh6+ {[%clk 0:00:03]}  Kf7 {[%clk 0:02:20]} 33. Rg7+ {[%clk 0:00:03]}  Ke6 {[%clk 0:02:21]} 34. Rxb7 {[%clk 0:00:04]}  Rh8 {[%clk 0:02:21]} 35. Kg3 {[%clk 0:00:03]}  Rxh6 {[%clk 0:02:21]} 36. Kf3 {[%clk 0:00:04]}  Rh3+ {[%clk 0:02:20]} 37. Ke2 {[%clk 0:00:03]}  Nf4+ {[%clk 0:02:21]} 38. Kd2 {[%clk 0:00:04]}  Rxh2 {[%clk 0:02:21]} 39. Re1+ {[%clk 0:00:05]}  Kd6 {[%clk 0:02:21]} 40. Rf1 {[%clk 0:00:05]}  Nh3 {[%clk 0:02:17]} 41. Rxa7 {[%clk 0:00:05]}  Nxf2 {[%clk 0:02:17]} 42. Ke3 {[%clk 0:00:03]}  Ng4+ {[%clk 0:02:15]} 43. Kf4 {[%clk 0:00:03]}  Rxb2 {[%clk 0:02:16]} 44. Ra6+ {[%clk 0:00:03]}  Kd5 {[%clk 0:02:16]} 45. a4 {[%clk 0:00:03]}  Kc4 {[%clk 0:02:13]} 46. a5 {[%clk 0:00:04]}  Kd3 {[%clk 0:02:14]} 47. Ra8 {[%clk 0:00:03]}  Nh2 {[%clk 0:02:09]} 48. Rg1 {[%clk 0:00:02]}  Rf2+ {[%clk 0:01:57]} 49. Kg3 {[%clk 0:00:02]}  Rc2 {[%clk 0:01:58]} 50. Rg2 {[%clk 0:00:02]}  Nf1+ {[%clk 0:01:57]} 51. Kh3 {[%clk 0:00:02]}  Rxc3 {[%clk 0:01:57]} 52. Rag8 {[%clk 0:00:01]}  Ke4+ {[%clk 0:01:56]} 53. Kh4 {[%clk 0:00:01]}  Ne3 {[%clk 0:01:57]} 54. Re8+ {[%clk 0:00:01]}  Kxd4 {[%clk 0:01:55]} 55. Rg3 {[%clk 0:00:02]}  f4 {[%clk 0:01:54]} 56. Rf3 {[%clk 0:00:02]}  Nf5+ {[%clk 0:01:51]} 57. Kg4 {[%clk 0:00:02]}  Ne3+ {[%clk 0:01:52]} 58. Kxf4 {[%clk 0:00:03]}  Nd5+ {[%clk 0:01:52]} 59. Kg4 {[%clk 0:00:03]}  f5+ {[%clk 0:01:53]} 60. Kg3 {[%clk 0:00:03]}  f4+ {[%clk 0:01:53]} 61. Kf2 {[%clk 0:00:03]}  Rc2+ {[%clk 0:01:53]} 62. Re2 {[%clk 0:00:04]}  Rc6 {[%clk 0:01:51]} 63. Ra3 {[%clk 0:00:04]}  Ne3 {[%clk 0:01:50]} 64. Rd2+ {[%clk 0:00:04]}  Ke4 {[%clk 0:01:50]} 65. a6 {[%clk 0:00:04]}  Rc1 {[%clk 0:01:49]} 66. Ra4+ {[%clk 0:00:05]}  Kf5 {[%clk 0:01:49]} 67. a7 {[%clk 0:00:05]}  Ng4+ {[%clk 0:01:48]} 68. Ke2 {[%clk 0:00:04]}  Ne5 {[%clk 0:01:40]} 69. Rd5 {[%clk 0:00:04]}  f3+ {[%clk 0:01:40]} 70. Kd2 {[%clk 0:00:04]}  f2 {[%clk 0:01:39]} 71. Rxe5+ {[%clk 0:00:04]}  Kxe5 {[%clk 0:01:39]} 72. a8=Q {[%clk 0:00:04]}  Rd1+ {[%clk 0:01:39]} 73. Kc2 {[%clk 0:00:04]}  f1=Q {[%clk 0:01:40]} 74. Qe8+ {[%clk 0:00:03]}  Kd6 {[%clk 0:01:39]} 75. Qd8+ {[%clk 0:00:03]}  Kc5 {[%clk 0:01:39]} 76. Qxd1 {[%clk 0:00:03]}  Qf5+ {[%clk 0:01:36]} 77. Qd3 {[%clk 0:00:03]}  Qf2+ {[%clk 0:01:37]} 78. Qd2 {[%clk 0:00:04]}  Qf5+ {[%clk 0:01:37]} 79. Kb2 {[%clk 0:00:02]}  Kb6 {[%clk 0:01:36]} 80. Qb4+ {[%clk 0:00:02]}  Kc7 {[%clk 0:01:37]} 81. Qc4+ {[%clk 0:00:02]}  Kb7 {[%clk 0:01:35]} 82. Rb4+ {[%clk 0:00:02]}  Ka7 {[%clk 0:01:36]} 83. Qa2+ {[%clk 0:00:03]} 1-0


[Site "https://www.chess.com"]

[Event "Titled Tuesday Blitz September 28 2021"]
[White "Rodchenkov, Vitaly"]
[Black "Szente Varga, Fruzsina"]
[WhiteFideId "4152964"]
[BlackFideId "712264"]
[WhiteElo "2337"]
[BlackElo "2106"]
[Result "1-0"]
[Round "09"]
[TimeControl "180+1"]
[Date "2021.09.28"]
[WhiteClock "0:01:37"]
[BlackClock "0:00:19"]

1. Nf3 {[%clk 0:03:00]}  Nf6 {[%clk 0:02:59]} 2. c4 {[%clk 0:03:00]}  g6 {[%clk 0:02:59]} 3. b4 {[%clk 0:03:00]}  Bg7 {[%clk 0:02:59]} 4. Bb2 {[%clk 0:03:01]}  O-O {[%clk 0:02:59]} 5. g3 {[%clk 0:03:01]}  c6 {[%clk 0:02:57]} 6. Bg2 {[%clk 0:03:00]}  d5 {[%clk 0:02:57]} 7. cxd5 {[%clk 0:03:00]}  cxd5 {[%clk 0:02:58]} 8. O-O {[%clk 0:03:00]}  Re8 {[%clk 0:02:42]} 9. Qb3 {[%clk 0:02:57]}  Nbd7 {[%clk 0:02:37]} 10. Nc3 {[%clk 0:02:54]}  Nb6 {[%clk 0:02:34]} 11. d3 {[%clk 0:02:51]}  d4 {[%clk 0:02:26]} 12. Nb5 {[%clk 0:02:45]}  e5 {[%clk 0:02:25]} 13. Ng5 {[%clk 0:02:38]}  Qe7 {[%clk 0:02:05]} 14. Rfc1 {[%clk 0:02:34]}  h6 {[%clk 0:01:56]} 15. Ne4 {[%clk 0:02:33]}  Be6 {[%clk 0:01:55]} 16. Nxf6+ {[%clk 0:02:29]}  Qxf6 {[%clk 0:01:56]} 17. Qd1 {[%clk 0:02:28]}  Re7 {[%clk 0:01:44]} 18. Nc7 {[%clk 0:02:27]}  Rb8 {[%clk 0:01:42]} 19. Nxe6 {[%clk 0:02:27]}  Qxe6 {[%clk 0:01:42]} 20. Qb3 {[%clk 0:02:25]}  Qg4 {[%clk 0:01:22]} 21. Bf3 {[%clk 0:02:22]}  Qg5 {[%clk 0:01:21]} 22. h4 {[%clk 0:02:21]}  Qf6 {[%clk 0:01:20]} 23. a4 {[%clk 0:02:18]}  g5 {[%clk 0:01:17]} 24. hxg5 {[%clk 0:02:18]}  hxg5 {[%clk 0:01:18]} 25. a5 {[%clk 0:02:18]}  Nc8 {[%clk 0:01:14]} 26. b5 {[%clk 0:02:17]}  Nd6 {[%clk 0:01:10]} 27. Ba3 {[%clk 0:02:16]}  Rd7 {[%clk 0:01:06]} 28. Kg2 {[%clk 0:02:14]}  Nf5 {[%clk 0:00:55]} 29. Be4 {[%clk 0:02:11]}  g4 {[%clk 0:00:50]} 30. Rh1 {[%clk 0:02:10]}  Ne7 {[%clk 0:00:33]} 31. Rac1 {[%clk 0:02:07]}  Ng6 {[%clk 0:00:32]} 32. b6 {[%clk 0:01:59]}  axb6 {[%clk 0:00:31]} 33. axb6 {[%clk 0:02:00]}  Qg5 {[%clk 0:00:26]} 34. Rc7 {[%clk 0:01:58]}  Qd8 {[%clk 0:00:23]} 35. Rhc1 {[%clk 0:01:57]}  Nf8 {[%clk 0:00:22]} 36. Bf5 {[%clk 0:01:55]}  Rd5 {[%clk 0:00:19]} 37. Bxg4 {[%clk 0:01:53]}  Ne6 {[%clk 0:00:17]} 38. Bxe6 {[%clk 0:01:52]}  fxe6 {[%clk 0:00:18]} 39. f3 {[%clk 0:01:50]}  Qg5 {[%clk 0:00:18]} 40. Rc8+ {[%clk 0:01:47]}  Rxc8 {[%clk 0:00:18]} 41. Rxc8+ {[%clk 0:01:48]}  Kh7 {[%clk 0:00:19]} 42. Bc1 {[%clk 0:01:45]}  Qh5 {[%clk 0:00:17]} 43. g4 {[%clk 0:01:44]}  Qh4 {[%clk 0:00:17]} 44. Rc7 {[%clk 0:01:43]}  Qe1 {[%clk 0:00:16]} 45. Qc2 {[%clk 0:01:42]}  Rd6 {[%clk 0:00:16]} 46. Qd2 {[%clk 0:01:42]}  Qh4 {[%clk 0:00:15]} 47. Qg5 {[%clk 0:01:40]}  Qxg5 {[%clk 0:00:15]} 48. Bxg5 {[%clk 0:01:39]}  Rxb6 {[%clk 0:00:16]} 49. Bf6 {[%clk 0:01:39]}  Kg6 {[%clk 0:00:16]} 50. Bxg7 {[%clk 0:01:39]}  Rb2 {[%clk 0:00:17]} 51. Kf2 {[%clk 0:01:38]}  b5 {[%clk 0:00:18]} 52. Bxe5 {[%clk 0:01:37]}  b4 {[%clk 0:00:18]} 53. Bxd4 {[%clk 0:01:37]}  Rb1 {[%clk 0:00:19]} 54. Rb7 {[%clk 0:01:37]}  b3 {[%clk 0:00:19]} 55. f4 {[%clk 0:01:37]} 1-0


[Site "https://www.chess.com"]

[Event "Titled Tuesday Blitz September 28 2021"]
[White "Rogac, Srdjan"]
[Black "Krivonosov, Oleg"]
[WhiteFideId "920576"]
[BlackFideId "11600349"]
[WhiteElo "2389"]
[BlackElo "2469"]
[Result "0-1"]
[Round "09"]
[TimeControl "180+1"]
[Date "2021.09.28"]
[WhiteClock "0:01:24"]
[BlackClock "0:01:17"]

1. Nf3 {[%clk 0:03:00]}  d5 {[%clk 0:02:59]} 2. c4 {[%clk 0:03:00]}  e6 {[%clk 0:02:58]} 3. b3 {[%clk 0:02:59]}  Nf6 {[%clk 0:02:58]} 4. Bb2 {[%clk 0:02:59]}  Be7 {[%clk 0:02:59]} 5. g3 {[%clk 0:03:00]}  O-O {[%clk 0:02:57]} 6. Bg2 {[%clk 0:03:00]}  c5 {[%clk 0:02:57]} 7. O-O {[%clk 0:02:59]}  Nc6 {[%clk 0:02:57]} 8. e3 {[%clk 0:02:59]}  b6 {[%clk 0:02:56]} 9. Qe2 {[%clk 0:02:59]}  Bb7 {[%clk 0:02:54]} 10. Rd1 {[%clk 0:02:57]}  Rc8 {[%clk 0:02:52]} 11. d3 {[%clk 0:02:54]}  Qc7 {[%clk 0:02:50]} 12. Nc3 {[%clk 0:02:53]}  Rfd8 {[%clk 0:02:50]} 13. Rac1 {[%clk 0:02:53]}  Qb8 {[%clk 0:02:49]} 14. cxd5 {[%clk 0:02:51]}  Nxd5 {[%clk 0:02:47]} 15. Nxd5 {[%clk 0:02:51]}  Rxd5 {[%clk 0:02:48]} 16. d4 {[%clk 0:02:50]}  cxd4 {[%clk 0:02:43]} 17. Nxd4 {[%clk 0:02:49]}  Nxd4 {[%clk 0:02:43]} 18. Bxd4 {[%clk 0:02:49]}  Rdd8 {[%clk 0:02:40]} 19. Qg4 {[%clk 0:02:42]}  Bf8 {[%clk 0:02:38]} 20. Rxc8 {[%clk 0:02:36]}  Rxc8 {[%clk 0:02:35]} 21. Be5 {[%clk 0:02:19]}  Qa8 {[%clk 0:02:29]} 22. Bxb7 {[%clk 0:02:18]}  Qxb7 {[%clk 0:02:28]} 23. Qe2 {[%clk 0:02:17]}  b5 {[%clk 0:02:21]} 24. Bb2 {[%clk 0:02:06]}  a6 {[%clk 0:02:20]} 25. Rc1 {[%clk 0:02:06]}  Rxc1+ {[%clk 0:02:18]} 26. Bxc1 {[%clk 0:02:07]}  Qc6 {[%clk 0:02:17]} 27. Qd1 {[%clk 0:02:05]}  f6 {[%clk 0:02:14]} 28. Bb2 {[%clk 0:02:01]}  e5 {[%clk 0:02:10]} 29. Qc1 {[%clk 0:01:55]}  Qxc1+ {[%clk 0:02:09]} 30. Bxc1 {[%clk 0:01:55]}  e4 {[%clk 0:02:09]} 31. f3 {[%clk 0:01:53]}  f5 {[%clk 0:01:54]} 32. Kf2 {[%clk 0:01:52]}  Kf7 {[%clk 0:01:53]} 33. h3 {[%clk 0:01:52]}  g6 {[%clk 0:01:51]} 34. fxe4 {[%clk 0:01:50]}  fxe4 {[%clk 0:01:50]} 35. g4 {[%clk 0:01:51]}  Bd6 {[%clk 0:01:49]} 36. Bd2 {[%clk 0:01:50]}  Ke6 {[%clk 0:01:48]} 37. Bc3 {[%clk 0:01:50]}  Kd5 {[%clk 0:01:47]} 38. Ke2 {[%clk 0:01:47]}  h5 {[%clk 0:01:44]} 39. gxh5 {[%clk 0:01:44]}  gxh5 {[%clk 0:01:43]} 40. Bd4 {[%clk 0:01:44]}  Ke6 {[%clk 0:01:43]} 41. Kf2 {[%clk 0:01:42]}  Kf5 {[%clk 0:01:42]} 42. Bc3 {[%clk 0:01:40]}  Ke6 {[%clk 0:01:41]} 43. Bg7 {[%clk 0:01:38]}  Bc5 {[%clk 0:01:39]} 44. Ke2 {[%clk 0:01:38]}  Kf5 {[%clk 0:01:37]} 45. Bh6 {[%clk 0:01:37]}  Bd6 {[%clk 0:01:33]} 46. Bg7 {[%clk 0:01:36]}  Kg6 {[%clk 0:01:30]} 47. Bc3 {[%clk 0:01:34]}  Bc5 {[%clk 0:01:28]} 48. Be1 {[%clk 0:01:32]}  Kf5 {[%clk 0:01:27]} 49. a4 {[%clk 0:01:32]}  bxa4 {[%clk 0:01:25]} 50. bxa4 {[%clk 0:01:32]}  Ke6 {[%clk 0:01:25]} 51. Bf2 {[%clk 0:01:30]}  Kd5 {[%clk 0:01:25]} 52. Kd2 {[%clk 0:01:30]}  Kc4 {[%clk 0:01:25]} 53. Kc2 {[%clk 0:01:30]}  Bb6 {[%clk 0:01:22]} 54. Bg1 {[%clk 0:01:28]}  Kb4 {[%clk 0:01:22]} 55. Bf2 {[%clk 0:01:27]}  Kxa4 {[%clk 0:01:18]} 56. Kc3 {[%clk 0:01:28]}  Kb5 {[%clk 0:01:18]} 57. Kb3 {[%clk 0:01:25]}  a5 {[%clk 0:01:18]} 58. Kc3 {[%clk 0:01:25]}  a4 {[%clk 0:01:18]} 59. Kc2 {[%clk 0:01:24]}  Kc4 {[%clk 0:01:17]} 0-1


[Site "https://www.chess.com"]

[Event "Titled Tuesday Blitz September 28 2021"]
[White "Rustemov, Alexander"]
[Black "Tologon tegin, Semetei"]
[WhiteFideId "4119002"]
[BlackFideId "13800574"]
[WhiteElo "2756"]
[BlackElo "2224"]
[Result "0-1"]
[Round "09"]
[TimeControl "180+1"]
[Date "2021.09.28"]
[WhiteClock "0:00:01"]
[BlackClock "0:00:03"]

1. d4 {[%clk 0:03:00]}  Nf6 {[%clk 0:02:59]} 2. c4 {[%clk 0:03:00]}  e6 {[%clk 0:03:00]} 3. Nf3 {[%clk 0:02:59]}  b6 {[%clk 0:02:59]} 4. Nc3 {[%clk 0:02:56]}  Bb7 {[%clk 0:02:59]} 5. a3 {[%clk 0:02:55]}  g6 {[%clk 0:02:59]} 6. Bf4 {[%clk 0:02:53]}  Bg7 {[%clk 0:02:58]} 7. h3 {[%clk 0:02:53]}  O-O {[%clk 0:02:58]} 8. e3 {[%clk 0:02:53]}  Ne4 {[%clk 0:02:47]} 9. Nxe4 {[%clk 0:02:48]}  Bxe4 {[%clk 0:02:46]} 10. Bd3 {[%clk 0:02:48]}  Bxd3 {[%clk 0:02:43]} 11. Qxd3 {[%clk 0:02:47]}  d6 {[%clk 0:02:44]} 12. O-O {[%clk 0:02:45]}  Nd7 {[%clk 0:02:44]} 13. Rfd1 {[%clk 0:02:41]}  Qe7 {[%clk 0:02:43]} 14. Bg3 {[%clk 0:02:34]}  e5 {[%clk 0:02:38]} 15. dxe5 {[%clk 0:02:33]}  Nxe5 {[%clk 0:02:38]} 16. Bxe5 {[%clk 0:02:13]}  Bxe5 {[%clk 0:02:39]} 17. Nxe5 {[%clk 0:02:06]}  Qxe5 {[%clk 0:02:38]} 18. b4 {[%clk 0:02:02]}  a5 {[%clk 0:02:37]} 19. Qd5 {[%clk 0:01:51]}  Rfe8 {[%clk 0:02:32]} 20. Rac1 {[%clk 0:01:40]}  axb4 {[%clk 0:02:29]} 21. axb4 {[%clk 0:01:40]}  Ra4 {[%clk 0:02:17]} 22. b5 {[%clk 0:01:24]}  Ra2 {[%clk 0:02:09]} 23. Qxe5 {[%clk 0:01:13]}  Rxe5 {[%clk 0:02:07]} 24. Ra1 {[%clk 0:01:09]}  Rc2 {[%clk 0:02:00]} 25. Rd4 {[%clk 0:01:06]}  Rf5 {[%clk 0:01:53]} 26. f4 {[%clk 0:00:56]}  Rc5 {[%clk 0:01:50]} 27. Ra4 {[%clk 0:00:53]}  f5 {[%clk 0:01:38]} 28. g4 {[%clk 0:00:43]}  Kf7 {[%clk 0:01:30]} 29. g5 {[%clk 0:00:38]}  Ke6 {[%clk 0:01:16]} 30. h4 {[%clk 0:00:38]}  d5 {[%clk 0:01:13]} 31. cxd5+ {[%clk 0:00:37]}  Rxd5 {[%clk 0:01:13]} 32. Rxd5 {[%clk 0:00:34]}  Kxd5 {[%clk 0:01:14]} 33. Rd4+ {[%clk 0:00:34]}  Ke6 {[%clk 0:01:10]} 34. Rd8 {[%clk 0:00:34]}  Rb2 {[%clk 0:01:07]} 35. Rh8 {[%clk 0:00:33]}  Kd5 {[%clk 0:01:07]} 36. Rxh7 {[%clk 0:00:32]}  Ke4 {[%clk 0:01:08]} 37. Rxc7 {[%clk 0:00:18]}  Kxe3 {[%clk 0:00:55]} 38. Rc6 {[%clk 0:00:16]}  Rxb5 {[%clk 0:00:51]} 39. Rxg6 {[%clk 0:00:14]}  Kxf4 {[%clk 0:00:51]} 40. h5 {[%clk 0:00:13]}  Kg3 {[%clk 0:00:47]} 41. Kf1 {[%clk 0:00:13]}  f4 {[%clk 0:00:47]} 42. Rf6 {[%clk 0:00:05]}  f3 {[%clk 0:00:46]} 43. Ke1 {[%clk 0:00:05]}  Rxg5 {[%clk 0:00:44]} 44. h6 {[%clk 0:00:04]}  Rh5 {[%clk 0:00:37]} 45. Kd2 {[%clk 0:00:04]}  b5 {[%clk 0:00:34]} 46. Ke3 {[%clk 0:00:04]}  Re5+ {[%clk 0:00:34]} 47. Kd4 {[%clk 0:00:04]}  Re7 {[%clk 0:00:32]} 48. Rg6+ {[%clk 0:00:02]}  Kh2 {[%clk 0:00:31]} 49. Rg7 {[%clk 0:00:02]}  f2 {[%clk 0:00:20]} 50. Rxe7 {[%clk 0:00:01]}  f1=Q {[%clk 0:00:20]} 51. h7 {[%clk 0:00:01]}  Qf6+ {[%clk 0:00:20]} 52. Kd5 {[%clk 0:00:01]}  b4 {[%clk 0:00:10]} 53. Rb7 {[%clk 0:00:01]}  Qf3+ {[%clk 0:00:05]} 54. Kc5 {[%clk 0:00:01]}  Qc3+ {[%clk 0:00:03]} 0-1


[Site "https://www.chess.com"]

[Event "Titled Tuesday Blitz September 28 2021"]
[White "Saravana, Krishnan P."]
[Black "Solon, Nathan"]
[WhiteFideId "5018382"]
[BlackFideId "2017229"]
[WhiteElo "2245"]
[BlackElo "2683"]
[Result "1-0"]
[Round "09"]
[TimeControl "180+1"]
[Date "2021.09.28"]
[WhiteClock "0:02:25"]
[BlackClock "0:00:37"]

1. e4 {[%clk 0:03:00]}  c6 {[%clk 0:02:59]} 2. d4 {[%clk 0:02:58]}  d5 {[%clk 0:03:00]} 3. Nc3 {[%clk 0:02:57]}  dxe4 {[%clk 0:02:59]} 4. Nxe4 {[%clk 0:02:57]}  Nf6 {[%clk 0:03:00]} 5. Ng5 {[%clk 0:02:55]}  h6 {[%clk 0:02:57]} 6. N5f3 {[%clk 0:02:55]}  Bf5 {[%clk 0:02:51]} 7. Ne2 {[%clk 0:02:54]}  e6 {[%clk 0:02:49]} 8. Ng3 {[%clk 0:02:53]}  Bh7 {[%clk 0:02:49]} 9. Bd3 {[%clk 0:02:49]}  Bxd3 {[%clk 0:02:45]} 10. Qxd3 {[%clk 0:02:50]}  Nbd7 {[%clk 0:02:46]} 11. O-O {[%clk 0:02:48]}  Qc7 {[%clk 0:02:39]} 12. Re1 {[%clk 0:02:47]}  O-O-O {[%clk 0:02:28]} 13. a4 {[%clk 0:02:46]}  h5 {[%clk 0:02:10]} 14. a5 {[%clk 0:02:36]}  Ng4 {[%clk 0:01:58]} 15. h3 {[%clk 0:02:33]}  Ngf6 {[%clk 0:01:27]} 16. Ng5 {[%clk 0:02:29]}  h4 {[%clk 0:01:16]} 17. Nf1 {[%clk 0:02:29]}  e5 {[%clk 0:00:37]} 18. Nxf7 {[%clk 0:02:25]}  Nc5 {[%clk 0:00:37]} 19. Qf5+ {[%clk 0:02:25]} 1-0


[Site "https://www.chess.com"]

[Event "Titled Tuesday Blitz September 28 2021"]
[White "Savchenko, Boris"]
[Black "Timofeev, Artyom"]
[WhiteFideId "4147332"]
[BlackFideId "4140419"]
[WhiteElo "2837"]
[BlackElo "2889"]
[Result "1-0"]
[Round "09"]
[TimeControl "180+1"]
[Date "2021.09.28"]
[WhiteClock "0:00:12"]
[BlackClock "0:00:05"]

1. e4 {[%clk 0:03:00]}  c5 {[%clk 0:02:59]} 2. Nf3 {[%clk 0:02:53]}  Nc6 {[%clk 0:02:59]} 3. d4 {[%clk 0:02:51]}  cxd4 {[%clk 0:02:58]} 4. Nxd4 {[%clk 0:02:52]}  Nf6 {[%clk 0:02:58]} 5. Nc3 {[%clk 0:02:51]}  d6 {[%clk 0:02:57]} 6. Bg5 {[%clk 0:02:50]}  e6 {[%clk 0:02:57]} 7. Qd2 {[%clk 0:02:50]}  a6 {[%clk 0:02:56]} 8. O-O-O {[%clk 0:02:49]}  Bd7 {[%clk 0:02:56]} 9. f4 {[%clk 0:02:48]}  b5 {[%clk 0:02:54]} 10. Bxf6 {[%clk 0:02:41]}  gxf6 {[%clk 0:02:53]} 11. Nxc6 {[%clk 0:02:39]}  Bxc6 {[%clk 0:02:54]} 12. f5 {[%clk 0:02:39]}  Qb6 {[%clk 0:02:36]} 13. Kb1 {[%clk 0:02:30]}  O-O-O {[%clk 0:02:32]} 14. fxe6 {[%clk 0:02:11]}  fxe6 {[%clk 0:02:31]} 15. Qf4 {[%clk 0:02:05]}  Be7 {[%clk 0:02:30]} 16. a3 {[%clk 0:02:03]}  Kb8 {[%clk 0:02:28]} 17. g3 {[%clk 0:01:59]}  b4 {[%clk 0:02:17]} 18. axb4 {[%clk 0:01:58]}  Qxb4 {[%clk 0:02:17]} 19. Bh3 {[%clk 0:01:57]}  Bd7 {[%clk 0:02:12]} 20. Rd3 {[%clk 0:01:50]}  Ka7 {[%clk 0:02:06]} 21. Rhd1 {[%clk 0:01:47]}  Rb8 {[%clk 0:02:05]} 22. b3 {[%clk 0:01:47]}  Rhc8 {[%clk 0:01:53]} 23. Nd5 {[%clk 0:01:35]}  exd5 {[%clk 0:01:43]} 24. Bxd7 {[%clk 0:01:36]}  Rc3 {[%clk 0:01:22]} 25. Qe3+ {[%clk 0:01:32]}  d4 {[%clk 0:01:22]} 26. Qxd4+ {[%clk 0:01:29]}  Qxd4 {[%clk 0:01:22]} 27. Rxd4 {[%clk 0:01:30]}  Re3 {[%clk 0:01:18]} 28. Bf5 {[%clk 0:01:26]}  h6 {[%clk 0:01:18]} 29. Rc4 {[%clk 0:01:23]}  Rb6 {[%clk 0:01:15]} 30. Rd2 {[%clk 0:01:18]}  Kb7 {[%clk 0:01:01]} 31. Ka2 {[%clk 0:01:15]}  Rc6 {[%clk 0:00:59]} 32. Rb4+ {[%clk 0:01:14]}  Kc7 {[%clk 0:00:59]} 33. Ra4 {[%clk 0:01:08]}  Bd8 {[%clk 0:00:57]} 34. Be6 {[%clk 0:01:07]}  Kb8 {[%clk 0:00:54]} 35. Bd5 {[%clk 0:01:07]}  Rb6 {[%clk 0:00:54]} 36. Kb2 {[%clk 0:01:04]}  f5 {[%clk 0:00:48]} 37. exf5 {[%clk 0:00:48]}  Bf6+ {[%clk 0:00:49]} 38. Kc1 {[%clk 0:00:38]}  Re1+ {[%clk 0:00:48]} 39. Rd1 {[%clk 0:00:38]}  Bg5+ {[%clk 0:00:48]} 40. Rf4 {[%clk 0:00:36]}  Rxd1+ {[%clk 0:00:28]} 41. Kxd1 {[%clk 0:00:36]}  Bxf4 {[%clk 0:00:28]} 42. gxf4 {[%clk 0:00:35]}  Kc7 {[%clk 0:00:29]} 43. Kd2 {[%clk 0:00:34]}  Kd7 {[%clk 0:00:29]} 44. f6 {[%clk 0:00:30]}  Rb5 {[%clk 0:00:27]} 45. c4 {[%clk 0:00:21]}  Rxb3 {[%clk 0:00:26]} 46. c5 {[%clk 0:00:21]}  Rb5 {[%clk 0:00:18]} 47. f7 {[%clk 0:00:16]}  Ke7 {[%clk 0:00:18]} 48. cxd6+ {[%clk 0:00:16]}  Kf8 {[%clk 0:00:18]} 49. Be6 {[%clk 0:00:16]}  Rb6 {[%clk 0:00:17]} 50. d7 {[%clk 0:00:16]}  Rd6+ {[%clk 0:00:17]} 51. Kc3 {[%clk 0:00:16]}  Ke7 {[%clk 0:00:17]} 52. f5 {[%clk 0:00:16]}  h5 {[%clk 0:00:14]} 53. h4 {[%clk 0:00:16]}  a5 {[%clk 0:00:14]} 54. Kb3 {[%clk 0:00:16]}  Rd4 {[%clk 0:00:14]} 55. Ka3 {[%clk 0:00:15]}  Kf8 {[%clk 0:00:13]} 56. Kb2 {[%clk 0:00:15]}  Ke7 {[%clk 0:00:13]} 57. Kc3 {[%clk 0:00:15]}  Rd6 {[%clk 0:00:10]} 58. Kc4 {[%clk 0:00:16]}  a4 {[%clk 0:00:10]} 59. Kb4 {[%clk 0:00:16]}  Rd4+ {[%clk 0:00:11]} 60. Kc5 {[%clk 0:00:12]}  Rd1 {[%clk 0:00:10]} 61. Bd5 {[%clk 0:00:11]}  Rc1+ {[%clk 0:00:08]} 62. Kb6 {[%clk 0:00:11]}  Rb1+ {[%clk 0:00:08]} 63. Kc7 {[%clk 0:00:11]}  Rc1+ {[%clk 0:00:07]} 64. Bc6 {[%clk 0:00:11]}  Rd1 {[%clk 0:00:06]} 65. Bxa4 {[%clk 0:00:10]}  Kxf7 {[%clk 0:00:05]} 66. d8=Q {[%clk 0:00:10]}  Rxd8 {[%clk 0:00:05]} 67. Kxd8 {[%clk 0:00:11]}  Kf6 {[%clk 0:00:06]} 68. Bd7 {[%clk 0:00:12]}  Ke5 {[%clk 0:00:05]} 69. Ke7 {[%clk 0:00:12]} 1-0


[Site "https://www.chess.com"]

[Event "Titled Tuesday Blitz September 28 2021"]
[White "Seo, Jung Min"]
[Black "Vokhidov, Shamsiddin"]
[WhiteFideId "1734687"]
[BlackFideId "14204223"]
[WhiteElo "2686"]
[BlackElo "2865"]
[Result "0-1"]
[Round "09"]
[TimeControl "180+1"]
[Date "2021.09.28"]
[WhiteClock "0:01:08"]
[BlackClock "0:02:27"]

1. e4 {[%clk 0:03:00]}  c5 {[%clk 0:02:59]} 2. Nf3 {[%clk 0:03:00]}  e6 {[%clk 0:03:00]} 3. Nc3 {[%clk 0:02:59]}  Nc6 {[%clk 0:03:00]} 4. g3 {[%clk 0:02:57]}  d5 {[%clk 0:02:59]} 5. exd5 {[%clk 0:02:56]}  exd5 {[%clk 0:03:00]} 6. d4 {[%clk 0:02:56]}  Nf6 {[%clk 0:02:59]} 7. Bg2 {[%clk 0:02:56]}  cxd4 {[%clk 0:03:00]} 8. Nxd4 {[%clk 0:02:56]}  Bg4 {[%clk 0:03:00]} 9. Qd3 {[%clk 0:02:52]}  Bc5 {[%clk 0:03:00]} 10. Be3 {[%clk 0:02:50]}  Bxd4 {[%clk 0:03:00]} 11. Bxd4 {[%clk 0:02:50]}  Qe7+ {[%clk 0:03:01]} 12. Kf1 {[%clk 0:02:41]}  Nxd4 {[%clk 0:03:01]} 13. Qxd4 {[%clk 0:02:41]}  O-O {[%clk 0:03:01]} 14. Re1 {[%clk 0:02:37]}  Be6 {[%clk 0:03:01]} 15. h4 {[%clk 0:02:30]}  Rac8 {[%clk 0:03:00]} 16. Qxa7 {[%clk 0:02:27]}  Qb4 {[%clk 0:02:58]} 17. Ne2 {[%clk 0:01:59]}  Rxc2 {[%clk 0:02:51]} 18. Qd4 {[%clk 0:01:54]}  Qxd4 {[%clk 0:02:38]} 19. Nxd4 {[%clk 0:01:54]}  Rxb2 {[%clk 0:02:39]} 20. Nxe6 {[%clk 0:01:49]}  fxe6 {[%clk 0:02:40]} 21. Rxe6 {[%clk 0:01:47]}  Ne4 {[%clk 0:02:35]} 22. Bxe4 {[%clk 0:01:44]}  Rfxf2+ {[%clk 0:02:35]} 23. Ke1 {[%clk 0:01:30]}  Rbe2+ {[%clk 0:02:32]} 24. Kd1 {[%clk 0:01:29]}  dxe4 {[%clk 0:02:33]} 25. Re1 {[%clk 0:01:08]}  Rxa2 {[%clk 0:02:27]} 0-1


[Site "https://www.chess.com"]